fUST/lending_fUST_20250609
["ID","MTS","AMOUNT","RATE_DAILY","PERIOD"]
[365105642,1749467439127,-550.66560407,0.00022003,6]
[365105644,1749467439136,-405.0,0.0002203,2]
[365105646,1749467439146,-218.0,0.00022044,7]
[365105648,1749467439159,-550.66560407,0.00022141,6]
[365105650,1749467439168,-440.0,0.00022188,4]
[365105652,1749467439177,-517.28720693,0.00022188,4]
[365105654,1749467439187,-899.7,0.00022188,4]
[365105656,1749467439198,-1031.69,0.00022188,4]
[365105658,1749467439208,-780.49,0.00022188,4]
[365105660,1749467439220,-440.0,0.00022188,4]
[365105662,1749467439229,-440.0,0.00022188,4]
[365105664,1749467439239,-440.0,0.00022188,4]
[365105666,1749467439249,-440.0,0.00022188,4]
[365105668,1749467439259,-440.0,0.00022188,4]
[365105670,1749467439268,-440.0,0.00022188,4]
[365105672,1749467439277,-440.0,0.00022188,4]
[365105674,1749467439287,-430.0,0.00022188,4]
[365105676,1749467439297,-440.0,0.00022188,4]
[365105678,1749467439306,-440.0,0.00022188,4]
[365105680,1749467439316,-450.0,0.00022188,4]
[365105682,1749467439327,-440.0,0.00022188,4]
[365105684,1749467439336,-440.0,0.00022188,4]
[365105686,1749467439345,-440.0,0.00022188,4]
[365105688,1749467439355,-440.0,0.00022188,4]
[365105690,1749467439364,-875.64,0.00022188,4]
[365105692,1749467439374,-440.0,0.00022188,4]
[365105694,1749467439384,-440.0,0.00022188,4]
[365105696,1749467439393,-433.89463576,0.00022189,4]
[365105698,1749467439402,-165.34009342,0.00022189,4]
[365105700,1749467439412,-261.80332058,0.00022189,4]
[365105702,1749467439421,-440.0,0.00022189,4]
[365105704,1749467439432,-430.0,0.00022189,4]
[365105706,1749467439441,-430.0,0.00022189,4]
[365105708,1749467439451,-430.0,0.00022189,4]
[365105710,1749467439461,-430.0,0.00022189,4]
[365105712,1749467439471,-453.12221441,0.00022189,4]
[365105714,1749467439480,-300.0,0.00022189,4]
[365105716,1749467439489,-440.0,0.00022189,4]
[365105718,1749467439498,-430.0,0.00022189,4]
[365105720,1749467439508,-387.18986344,0.00022189,4]
[365105722,1749467439518,-440.0,0.00022189,4]
[365105725,1749467439528,-440.0,0.00022189,4]
[365105727,1749467439537,-440.0,0.00022189,4]
[365105729,1749467439547,-440.0,0.00022189,4]
[365105731,1749467439556,-440.0,0.00022189,4]
[365105733,1749467439566,-440.0,0.00022189,4]
[365105735,1749467439575,-440.0,0.00022189,4]
[365105737,1749467439585,-337.31978493,0.00022189,4]
[365105739,1749467439596,-450.0,0.00022189,4]
[365105741,1749467439605,-450.0,0.00022189,4]
[365105743,1749467439614,-440.0,0.00022189,4]
[365105745,1749467439624,-440.0,0.00022189,4]
[365105747,1749467439633,-440.0,0.00022189,4]
[365105749,1749467439642,-440.0,0.00022189,4]
[365105751,1749467439652,-440.0,0.00022189,4]
[365105753,1749467439661,-440.0,0.00022189,4]
[365105755,1749467439670,-289.92,0.00022189,4]
[365105757,1749467439679,-440.0,0.00022189,4]
[365105759,1749467439688,-1144.39,0.00022189,4]
[365105761,1749467439698,-440.0,0.00022189,4]
[365105763,1749467439707,-440.0,0.00022189,4]
[365105765,1749467439716,-440.0,0.00022189,4]
[365105767,1749467439725,-440.0,0.00022189,4]
[365105769,1749467439735,-440.0,0.00022189,4]
[365105771,1749467439744,-430.0,0.00022189,4]
[365105773,1749467439753,-440.0,0.00022189,4]
[365105775,1749467439762,-440.0,0.00022189,4]
[365105777,1749467439772,-379.15473532,0.00022189,4]
[365105779,1749467439781,-440.0,0.00022189,4]
[365105781,1749467439790,-440.0,0.00022189,4]
[365105783,1749467439800,-346.93,0.00022189,4]
[365105785,1749467439809,-440.0,0.00022189,4]
[365105787,1749467439819,-1209.17,0.00022189,4]
[365105788,1749467439828,-440.0,0.00022189,4]
[365105790,1749467439837,-440.0,0.00022189,4]
[365105792,1749467439846,-431.48573508,0.00022189,4]
[365105794,1749467439856,-441.59428639,0.00022189,4]
[365105796,1749467439866,-440.0,0.00022189,4]
[365105798,1749467439876,-440.0,0.00022189,4]
[365105801,1749467439886,-440.0,0.00022189,4]
[365105802,1749467439896,-165.526,0.0002219,2]
[365105805,1749467439907,-440.0,0.0002219,4]
[365105807,1749467439916,-499.3,0.0002219,4]
[365105809,1749467439926,-440.0,0.0002219,4]
[365105811,1749467439935,-440.0,0.0002219,4]
[365105813,1749467439944,-440.0,0.0002219,4]
[365105815,1749467439954,-530.27,0.0002219,4]
[365105817,1749467439963,-440.0,0.0002219,4]
[365105818,1749467439972,-619.39,0.0002219,4]
[365105820,1749467439982,-1396.24,0.0002219,4]
[365105822,1749467439992,-758.24,0.0002219,4]
[365105823,1749467440001,-440.0,0.00022191,4]
[365105824,1749467440010,-440.0,0.00022191,4]
[365105825,1749467440019,-516.7,0.00022191,4]
[365105826,1749467440028,-440.0,0.00022191,4]
[365105827,1749467440037,-440.0,0.00022191,4]
[365105828,1749467440046,-5254.94,0.00022191,4]
[365105829,1749467440056,-323.12143224,0.00022191,4]
[365105830,1749467440064,-430.0,0.00022191,4]
[365105831,1749467440073,-904.46,0.00022191,4]
[365105832,1749467440082,-825.09,0.00022191,4]
[365105833,1749467440091,-440.0,0.00022191,4]
[365105834,1749467440100,-881.86,0.00022191,4]
[365105835,1749467440109,-440.0,0.00022191,4]
[365105836,1749467440118,-440.0,0.00022191,4]
[365105837,1749467440128,-842.5625,0.00022193,2]
[365105838,1749467440137,-203.83567907,0.00022221,30]
[365105839,1749467440146,-440.0,0.00022223,4]
[365105841,1749467440155,-218.0,0.00022278,7]
[365105842,1749467440167,-550.66560407,0.00022279,6]
[365105844,1749467440177,-425.51,0.00022303,2]
[365105847,1749467440187,-500.0,0.00022347,2]
[365105849,1749467440196,-207.4,0.00022354,2]
[365105852,1749467440207,-550.66560407,0.00022417,7]
[365105855,1749467440216,-500.0,0.00022456,2]
[365105858,1749467440226,-899.7,0.00022462,4]
[365105861,1749467440235,-1031.69,0.00022462,4]
[365105864,1749467440244,-780.49,0.00022462,4]
[365105867,1749467440254,-440.0,0.00022462,4]
[365105870,1749467440263,-444.28301997,0.00022462,4]
[365105873,1749467440273,-440.0,0.00022462,4]
[365105876,1749467440283,-440.0,0.00022462,4]
[365105879,1749467440293,-440.0,0.00022462,4]
[365105882,1749467440303,-440.0,0.00022462,4]
[365105885,1749467440312,-440.0,0.00022462,4]
[365105888,1749467440322,-440.0,0.00022462,4]
[365105891,1749467440331,-440.0,0.00022462,4]
[365105893,1749467440341,-440.0,0.00022462,4]
[365105895,1749467440351,-875.64,0.00022462,4]
[365105897,1749467440360,-440.0,0.00022462,4]
[365105899,1749467440370,-440.0,0.00022462,4]
[365105901,1749467440379,-440.0,0.00022463,4]
[365105903,1749467440389,-440.0,0.00022463,4]
[365105906,1749467440399,-440.0,0.00022463,4]
[365105908,1749467440409,-440.0,0.00022463,4]
[365105910,1749467440418,-433.93209974,0.00022463,4]
[365105911,1749467440427,-440.0,0.00022463,4]
[365105914,1749467440438,-176.39120426,0.00022463,4]
[365105916,1749467440448,-440.0,0.00022463,4]
[365105918,1749467440458,-440.0,0.00022463,4]
[365105920,1749467440467,-440.0,0.00022463,4]
[365105922,1749467440477,-440.0,0.00022463,4]
[365105924,1749467440487,-1144.39,0.00022463,4]
[365105926,1749467440498,-440.0,0.00022463,4]
[365105928,1749467440508,-440.0,0.00022463,4]
[365105942,1749467440622,-440.0,0.00022463,4]
[365105944,1749467440632,-440.0,0.00022463,4]
[365105946,1749467440642,-1209.17,0.00022463,4]
[365105948,1749467440651,-368.62116447,0.00022463,4]
[365105950,1749467440660,-440.0,0.00022463,4]
[365105952,1749467440670,-440.0,0.00022463,4]
[365105954,1749467440679,-440.0,0.00022463,4]
[365105956,1749467440689,-482.46900848,0.00022464,4]
[365105958,1749467440699,-499.3,0.00022464,4]
[365105960,1749467440708,-440.0,0.00022464,4]
[365105962,1749467440718,-589.18,0.00022464,4]
[365105964,1749467440727,-530.27,0.00022464,4]
[365105966,1749467440737,-517.41816201,0.00022464,4]
[365105968,1749467440746,-619.39,0.00022464,4]
[365105970,1749467440755,-1396.24,0.00022464,4]
[365105972,1749467440764,-758.24,0.00022464,4]
[365105974,1749467440774,-440.0,0.00022465,4]
[365105976,1749467440783,-344.82288595,0.00022465,4]
[365105978,1749467440792,-5254.94,0.00022465,4]
[365105980,1749467440803,-904.46,0.00022465,4]
[365105982,1749467440812,-825.09,0.00022465,4]
[365105984,1749467440822,-385.35596156,0.00022465,4]
[365105986,1749467440832,-881.86,0.00022465,4]
[365105988,1749467440841,-263.18,0.00022465,4]
[365105990,1749467440850,-218.0,0.00022512,7]
[365105992,1749467440859,-550.66560407,0.00022555,7]
[365105994,1749467440870,-153.87739255,0.00022558,2]
[365105996,1749467440879,-550.66560407,0.00022693,7]
[365105998,1749467440888,-899.7,0.00022736,4]
[365106000,1749467440898,-1031.69,0.00022736,4]
[365106002,1749467440907,-780.49,0.00022736,4]
[365106004,1749467440916,-440.0,0.00022736,4]
[365106006,1749467440926,-440.0,0.00022736,4]
[365106008,1749467440936,-440.0,0.00022736,4]
[365106010,1749467440945,-875.64,0.00022736,4]
[365106012,1749467440954,-440.0,0.00022736,4]
[365106014,1749467440964,-440.0,0.00022736,4]
[365106016,1749467440973,-440.0,0.00022737,4]
[365106017,1749467440982,-440.0,0.00022737,4]
[365106019,1749467440991,-440.0,0.00022737,4]
[365106021,1749467441001,-440.0,0.00022737,4]
[365106023,1749467441010,-440.0,0.00022737,4]
[365106026,1749467441020,-440.0,0.00022737,4]
[365106028,1749467441029,-440.0,0.00022737,4]
[365106030,1749467441038,-1144.39,0.00022737,4]
[365106032,1749467441047,-440.0,0.00022737,4]
[365106034,1749467441057,-440.0,0.00022737,4]
[365106036,1749467441066,-359.60574625,0.00022737,4]
[365106038,1749467441075,-1209.17,0.00022737,4]
[365106039,1749467441085,-279.07774906,0.00022737,4]
[365106042,1749467441094,-440.0,0.00022737,4]
[365106043,1749467441103,-440.0,0.00022737,4]
[365106046,1749467441113,-499.3,0.00022738,4]
[365106048,1749467441123,-440.0,0.00022738,4]
[365106050,1749467441131,-530.27,0.00022738,4]
[365106052,1749467441141,-619.39,0.00022738,4]
[365106054,1749467441153,-1396.24,0.00022738,4]
[365106056,1749467441165,-758.24,0.00022738,4]
[365106058,1749467441174,-440.0,0.00022739,4]
[365106060,1749467441183,-5254.94,0.00022739,4]
[365106062,1749467441193,-904.46,0.00022739,4]
[365106064,1749467441202,-825.09,0.00022739,4]
[365106066,1749467441211,-881.86,0.00022739,4]
[365106067,1749467441221,-218.0,0.00022747,7]
[365106069,1749467441231,-550.66560407,0.00022831,8]
[365106071,1749467441240,-963.0,0.0002286,2]
[365106074,1749467441252,-2160.0,0.0002286,2]
[365106075,1749467441262,-653.0,0.0002286,2]
[365106077,1749467441272,-1000.0,0.00022895,2]
[365106079,1749467441282,-420.0,0.0002292,2]
[365106082,1749467441292,-420.0,0.0002292,2]
[365106084,1749467441301,-550.66560407,0.00022969,8]
[365106085,1749467441311,-218.0,0.00022981,7]
[365106087,1749467441321,-337.8,0.00023,2]
[365106089,1749467441330,-1000.0,0.00023004,2]
[365106091,1749467441339,-899.7,0.0002301,4]
[365106093,1749467441350,-1031.69,0.0002301,4]
[365106095,1749467441359,-780.49,0.0002301,4]
[365106097,1749467441370,-440.0,0.0002301,4]
[365106099,1749467441379,-440.0,0.0002301,4]
[365106101,1749467441389,-875.64,0.0002301,4]
[365106103,1749467441399,-440.0,0.0002301,4]
[365106105,1749467441411,-440.0,0.0002301,4]
[365106108,1749467441421,-440.0,0.00023011,4]
[365106110,1749467441431,-240.08,0.00023011,4]
[365106112,1749467441440,-1144.39,0.00023011,4]
[365106114,1749467441450,-440.0,0.00023011,4]
[365106116,1749467441460,-1209.17,0.00023011,4]
[365106118,1749467441469,-440.0,0.00023011,4]
[365106120,1749467441479,-440.0,0.00023011,4]
[365106122,1749467441489,-499.3,0.00023012,4]
[365106124,1749467441498,-440.0,0.00023012,4]
[365106126,1749467441508,-530.27,0.00023012,4]
[365106128,1749467441517,-619.39,0.00023012,4]
[365106130,1749467441526,-1396.24,0.00023012,4]
[365106131,1749467441535,-758.24,0.00023012,4]
[365106133,1749467441544,-440.0,0.00023013,4]
[365106135,1749467441553,-5254.94,0.00023013,4]
[365106137,1749467441562,-904.46,0.00023013,4]
[365106139,1749467441572,-825.09,0.00023013,4]
[365106141,1749467441581,-881.86,0.00023013,4]
[365106143,1749467441591,-550.66560407,0.00023107,8]
[365106145,1749467441600,-886.21437922,0.00023187,2]
[365106147,1749467441609,-218.0,0.00023215,7]
[365106149,1749467441619,-550.66560407,0.00023245,8]
[365106151,1749467441628,-500.0,0.00023272,2]
[365106153,1749467441638,-500.0,0.00023272,2]
[365106155,1749467441647,-500.0,0.00023272,2]
[365106157,1749467441657,-500.0,0.00023272,2]
[365106159,1749467441666,-500.0,0.00023272,2]
[365106161,1749467441675,-500.0,0.00023272,2]
[365106163,1749467441684,-500.0,0.00023272,2]
[365106165,1749467441694,-500.0,0.00023272,2]
[365106167,1749467441703,-500.0,0.00023272,2]
[365106169,1749467441712,-362.01454701,0.00023272,2]
[365106171,1749467441721,-16000.0,0.00023272,2]
[365106173,1749467441731,-899.7,0.00023284,4]
[365106175,1749467441740,-780.49,0.00023284,4]
[365106177,1749467441749,-1031.69,0.00023284,4]
[365106179,1749467441758,-440.0,0.00023284,4]
[365106181,1749467441767,-440.0,0.00023284,4]
[365106183,1749467441777,-875.64,0.00023284,4]
[365106185,1749467441786,-280.74752685,0.00023284,4]
[365106187,1749467441795,-440.0,0.00023284,4]
[365106189,1749467441805,-440.0,0.00023285,4]
[365106191,1749467441814,-1144.39,0.00023285,4]
[365106193,1749467441823,-568.61696025,0.00023285,4]
[365106195,1749467441834,-1209.17,0.00023285,4]
[365106197,1749467441843,-440.0,0.00023285,4]
[365106199,1749467441852,-440.0,0.00023285,4]
[365106201,1749467441862,-499.3,0.00023286,4]
[365106203,1749467441871,-440.0,0.00023286,4]
[365106206,1749467441883,-530.27,0.00023286,4]
[365106208,1749467441892,-619.39,0.00023286,4]
[365106210,1749467441902,-1396.24,0.00023286,4]
[365106212,1749467441911,-758.24,0.00023286,4]
[365106214,1749467441921,-440.0,0.00023287,4]
[365106216,1749467441930,-5254.94,0.00023287,4]
[365106218,1749467441939,-904.46,0.00023287,4]
[365106219,1749467441949,-825.09,0.00023287,4]
[365106221,1749467441958,-881.86,0.00023287,4]
[365106223,1749467441968,-229.64266968,0.00023294,2]
[365106226,1749467441978,-3000.0,0.000233,2]
[365106228,1749467441987,-3000.0,0.0002331,2]
[365106230,1749467441998,-3000.0,0.0002332,2]
[365106232,1749467442009,-3000.0,0.0002333,2]
[365106234,1749467442019,-3000.0,0.0002334,2]
[365106236,1749467442029,-3000.0,0.0002335,2]
[365106238,1749467442038,-3000.0,0.0002336,2]
[365106240,1749467442048,-317.10853084,0.00023365,2]
[365106242,1749467442057,-886.21437918,0.00023365,2]
[365106244,1749467442067,-3000.0,0.0002337,2]
[365106246,1749467442077,-168.0,0.00023374,2]
[365106248,1749467442086,-3000.0,0.0002338,2]
[365106250,1749467442096,-550.66560407,0.00023383,9]
[365106252,1749467442105,-3000.0,0.0002339,2]
[365106254,1749467442115,-3000.0,0.000234,2]
[365106256,1749467442125,-752.12,0.000234,3]
[365106258,1749467442135,-3000.0,0.0002341,2]
[365106260,1749467442144,-3000.0,0.0002342,2]
[365106262,1749467442155,-3000.0,0.0002343,2]
[365106264,1749467442167,-250.69,0.0002343,3]
[365106266,1749467442177,-3000.0,0.0002344,2]
[365106268,1749467442187,-958.200159,0.00023442,3]
[365106270,1749467442196,-1357.51560398,0.00023443,2]
[365106272,1749467442207,-218.0,0.00023449,7]
[365106274,1749467442216,-3000.0,0.0002345,2]
[365106276,1749467442226,-9191.38746569,0.00023458,2]
[365106278,1749467442235,-500.0,0.00023459,2]
[365106279,1749467442246,-400.99438464,0.00023459,2]
[365106281,1749467442256,-331.85563542,0.00023459,2]
[365106283,1749467442265,-500.0,0.00023459,2]
[365106285,1749467442275,-3000.0,0.0002346,2]
[365106287,1749467442285,-3000.0,0.0002347,2]
[365106289,1749467442294,-597.0,0.00023474,2]
[365106291,1749467442303,-306.0,0.00023479,2]
[365106293,1749467442312,-3000.0,0.0002348,2]
[365106295,1749467442323,-3000.0,0.0002349,2]
[365106297,1749467442333,-213.08899333,0.00023493,2]
[365106299,1749467442342,-3000.0,0.000235,2]
[365106302,1749467442352,-168.0,0.00023507,2]
[365106303,1749467442361,-3000.0,0.0002351,2]
[365106305,1749467442370,-4276.56918,0.00023519,2]
[365106307,1749467442380,-3000.0,0.0002352,2]
[365106309,1749467442389,-550.66560407,0.00023521,9]
[365106311,1749467442399,-597.0,0.00023525,2]
[365106313,1749467442408,-3000.0,0.0002353,2]
[365106315,1749467442418,-424.05420114,0.00023536,2]
[365106317,1749467442427,-834.7738823,0.00023536,2]
[365106319,1749467442437,-160.0,0.00023536,2]
[365106321,1749467442447,-3000.0,0.0002354,2]
[365106323,1749467442457,-886.21437918,0.00023544,2]
[365106325,1749467442466,-3000.0,0.0002355,2]
[365106327,1749467442477,-1515.39147264,0.00023551,2]
[365106329,1749467442487,-899.7,0.00023558,4]
[365106332,1749467442497,-780.49,0.00023558,4]
[365106333,1749467442506,-1031.69,0.00023558,4]
[365106335,1749467442515,-440.0,0.00023558,4]
[365106337,1749467442525,-440.0,0.00023558,4]
[365106339,1749467442534,-875.64,0.00023558,4]
[365106341,1749467442543,-440.0,0.00023558,4]
[365106343,1749467442552,-440.0,0.00023559,4]
[365106344,1749467442562,-1144.39,0.00023559,4]
[365106345,1749467442571,-1209.17,0.00023559,4]
[365106346,1749467442580,-440.0,0.00023559,4]
[365106347,1749467442589,-440.0,0.00023559,4]
[365106348,1749467442599,-3000.0,0.0002356,2]
[365106349,1749467442607,-499.3,0.0002356,4]
[365106350,1749467442616,-440.0,0.0002356,4]
[365106351,1749467442625,-530.27,0.0002356,4]
[365106352,1749467442634,-619.39,0.0002356,4]
[365106353,1749467442643,-1396.24,0.0002356,4]
[365106354,1749467442652,-758.24,0.0002356,4]
[365106355,1749467442660,-440.0,0.00023561,4]
[365106356,1749467442669,-5254.94,0.00023561,4]
[365106357,1749467442678,-904.46,0.00023561,4]
[365106358,1749467442688,-825.09,0.00023561,4]
[365106359,1749467442697,-881.86,0.00023561,4]
[365106360,1749467442706,-3000.0,0.0002357,2]
[365106361,1749467442714,-3000.0,0.0002358,2]
[365106362,1749467442723,-600.0,0.00023582,2]
[365106363,1749467442732,-3000.0,0.0002359,2]
[365106364,1749467442741,-3000.0,0.000236,2]
[365106365,1749467442750,-3000.0,0.0002361,2]
[365106366,1749467442760,-729.29325,0.00023616,2]
[365106367,1749467442768,-5502.806779,0.0002362,2]
[365106368,1749467442777,-550.66560407,0.00023659,9]
[365106369,1749467442786,-168.0,0.00023664,2]
[365106370,1749467442795,-597.0,0.00023684,2]
[365106371,1749467442804,-218.0,0.00023684,7]
[365106372,1749467442813,-897.0,0.000237,2]
[365106373,1749467442822,-597.0,0.00023701,2]
[365106374,1749467442831,-886.21437918,0.00023722,2]
[365106375,1749467442842,-215.0738,0.00023723,2]
[365106377,1749467442851,-597.0,0.00023733,2]
[365106378,1749467442861,-168.0,0.00023776,2]
[365106379,1749467442870,-597.0,0.00023792,2]
[365106380,1749467442879,-550.66560407,0.00023797,9]
[365106382,1749467442889,-16000.0,0.0002382,2]
[365106384,1749467442898,-1059.83995562,0.00023828,2]
[365106386,1749467442911,-899.7,0.00023832,4]
[365106388,1749467442924,-780.49,0.00023832,4]
[365106390,1749467442935,-1031.69,0.00023832,4]
[365106392,1749467442945,-430.21953785,0.00023832,4]
[365106394,1749467442954,-440.0,0.00023832,4]
[365106396,1749467442963,-875.64,0.00023832,4]
[365106398,1749467442974,-440.0,0.00023832,4]
[365106400,1749467442983,-440.0,0.00023833,4]
[365106402,1749467442993,-1144.39,0.00023833,4]
[365106404,1749467443002,-1209.17,0.00023833,4]
[365106406,1749467443012,-440.0,0.00023833,4]
[365106408,1749467443022,-376.32,0.00023833,4]
[365106410,1749467443031,-499.3,0.00023834,4]
[365106412,1749467443040,-440.0,0.00023834,4]
[365106414,1749467443050,-530.27,0.00023834,4]
[365106416,1749467443060,-619.39,0.00023834,4]
[365106418,1749467443069,-1396.24,0.00023834,4]
[365106420,1749467443079,-758.24,0.00023834,4]
[365106423,1749467443089,-440.0,0.00023835,4]
[365106426,1749467443099,-5254.94,0.00023835,4]
[365106429,1749467443108,-904.46,0.00023835,4]
[365106432,1749467443118,-825.09,0.00023835,4]
[365106435,1749467443127,-881.86,0.00023835,4]
[365106437,1749467443136,-970.993427,0.000239,2]
[365106439,1749467443146,-886.21437918,0.000239,2]
[365106441,1749467443158,-2000.0,0.00023917,2]
[365106443,1749467443168,-2000.0,0.00023917,2]
[365106445,1749467443178,-2000.0,0.00023917,2]
[365106447,1749467443187,-2000.0,0.00023917,2]
[365106449,1749467443199,-1269.80014649,0.00023917,2]
[365106451,1749467443209,-218.0,0.00023918,7]
[365106453,1749467443218,-89972.67247966,0.00023932,15]
[365106455,1749467443228,-151.0,0.00023932,7]
[365106457,1749467443237,-151.0,0.00023932,7]
[365106459,1749467443247,-151.0,0.00023932,7]
[365106462,1749467443256,-151.0,0.00023932,7]
[365106464,1749467443266,-151.0,0.00023932,7]
[365106466,1749467443275,-151.0,0.00023932,7]
[365106468,1749467443285,-597.0,0.00023933,2]
[365106470,1749467443295,-550.66560407,0.00023934,10]
[365106472,1749467443305,-151.0,0.00023964,7]
[365106475,1749467443316,-9191.38746568,0.00023965,2]
[365106477,1749467443326,-500.0,0.00023973,2]
[365106479,1749467443336,-500.34611475,0.00023973,2]
[365106480,1749467443346,-500.0,0.00023973,2]
[365106482,1749467443356,-500.0,0.00023973,2]
[365106484,1749467443370,-500.0,0.00023973,2]
[365106485,1749467443380,-258.46467805,0.00023973,2]
[365106498,1749467443501,-258.46467805,0.00023973,2]
[365106500,1749467443511,-500.0,0.00023973,2]
[365106502,1749467443522,-258.46763461,0.00023973,2]
[365106504,1749467443532,-258.46467805,0.00023973,2]
[365106506,1749467443542,-500.0,0.00023973,2]
[365106508,1749467443551,-500.0,0.00023973,2]
[365106510,1749467443562,-262.87681633,0.00023973,2]
[365106512,1749467443573,-263.4776364,0.00023973,2]
[365106514,1749467443584,-258.46763461,0.00023973,2]
[365106516,1749467443593,-500.0,0.00023973,2]
[365106518,1749467443602,-258.46763461,0.00023973,2]
[365106519,1749467443611,-500.0,0.00023973,2]
[365106521,1749467443627,-500.0,0.00023973,2]
[365106523,1749467443638,-500.0,0.00023973,2]
[365106525,1749467443647,-500.0,0.00023973,2]
[365106527,1749467443658,-500.0,0.00023973,2]
[365106529,1749467443668,-500.0,0.00023973,2]
[365106531,1749467443677,-171.6394068,0.00023973,2]
[365106533,1749467443687,-506.56918345,0.00023973,2]
[365106535,1749467443696,-500.0,0.00023973,2]
[365106537,1749467443706,-600.0,0.00023973,2]
[365106539,1749467443715,-500.0,0.00023973,2]
[365106541,1749467443724,-500.0,0.00023973,2]
[365106543,1749467443734,-500.0,0.00023973,2]
[365106545,1749467443743,-500.0,0.00023973,2]
[365106547,1749467443752,-500.0,0.00023973,2]
[365106550,1749467443763,-530.01113979,0.00023973,2]
[365106552,1749467443772,-515.62839097,0.00023973,2]
[365106555,1749467443781,-500.0,0.00023973,2]
[365106558,1749467443791,-501.66278517,0.00023973,2]
[365106560,1749467443800,-500.0,0.00023973,2]
[365106562,1749467443809,-500.0,0.00023973,2]
[365106565,1749467443819,-502.28671079,0.00023973,2]
[365106568,1749467443828,-166.81235177,0.00023973,2]
[365106570,1749467443837,-597.0,0.00023975,2]
[365106573,1749467443847,-25076.32657806,0.00023988,2]
[365106576,1749467443856,-13381.89840184,0.00023988,2]
[365106579,1749467443867,-10635.93923229,0.00023988,2]
[365107191,1749467449978,2500.0,0.00024658,120]
[365108905,1749467483157,2483.02,0.00024658,120]
[365108906,1749467491471,200.0,0.00024573,120]
[365108908,1749467538601,1000.0,0.00024658,120]
[365108909,1749467543622,1000.0,0.00024658,120]
[365108910,1749467548352,1000.0,0.00024658,120]
[365108911,1749467552740,1000.0,0.00024658,120]
[365108912,1749467554676,54371.36300156,0.00024657,120]
[365108913,1749467556634,1000.0,0.00024658,120]
[365108915,1749467582264,637.999139,0.00024658,120]
[365108916,1749467611599,200.0,0.00024545,120]
[365108918,1749467671487,200.0,0.00024603,120]
[365108919,1749467677024,218.0,0.00024658,120]
[365108921,1749467790875,200.0,0.0002398,120]
[365108923,1749467850745,200.0,0.00023821,120]
[365108924,1749467960100,436.0,0.00024658,120]
[365108926,1749468030790,200.0,0.00023377,120]
[365108927,1749468091328,200.0,0.00023741,120]
[365108931,1749468150811,200.0,0.00024559,120]
[365108933,1749468210872,200.0,0.00023841,120]
[365108935,1749468270862,200.0,0.00023704,120]
[365108937,1749468311031,654.0,0.00024658,120]
[365108939,1749468331027,200.0,0.00023991,120]
[365108949,1749468469910,2409.76022857,0.00024588,120]
[365108950,1749468470719,250.89637435,0.000246,120]
[365108953,1749468483434,200.0,0.00024588,120]
[365108957,1749468492053,2000.0,0.00020124,120]
[365108958,1749468492246,3190.82778613,0.00024588,120]
[365108959,1749468495345,268.11895471,0.00024588,120]